Workbook

Sheet Contribution Calculator
A1: Randolph Board of Education | L1: Powered by
A2: Employee Contribution Calculator | F2: Per Paycheck Contribution | I2: =CalculationSheet!C68 -> 0
A3: 2023-2024
B5: Step 1 | C5: Enter your base salary | F5: 25000 | I5: Step 2 | J5: Are you a 10 or 12 month employee?
E7: Step 3 | F7: Where you hired after 07/01/2020 | I7: Yes
B9: Step 4 | C9: Select Medical Contract Type | I9: Your Contribution Percentage | M9: =CalculationSheet!D39 -> 
B11: Pick Plan | C11: Medical/ Rx Plans Offered | G11: Monthly Premium | I11: Annual Contribution | K11: Payperiod Contribution
C12: =CalculationSheet!A2 -> SHIF Aetna Managed Choice POS $5 (High Plan) | G12: =CalculationSheet!B41 -> Not Available | I12: =CalculationSheet!E41 ->  | K12: =CalculationSheet!F41 -> 
C13: =CalculationSheet!A3 -> SHIF Aetna Managed Choice POS $25(Low Plan) | G13: =CalculationSheet!B42 -> Not Available | I13: =CalculationSheet!E42 ->  | K13: =CalculationSheet!F42 -> 
C14: =CalculationSheet!A4 -> SHIF Aetna OAEC Savings Plus | G14: =CalculationSheet!B43 -> Not Available | I14: =CalculationSheet!E43 ->  | K14: =CalculationSheet!F43 -> 
C15: =CalculationSheet!A5 -> SHIF Aetna OAMC HSA | G15: =CalculationSheet!B44 -> Not Available | I15: =CalculationSheet!E44 ->  | K15: =CalculationSheet!F44 -> 
C16: =CalculationSheet!A6 -> SHIF Aetna NJEHP | G16: =CalculationSheet!B45 ->  | I16: =CalculationSheet!E45 ->  | K16: =CalculationSheet!F45 ->  | M16: =CalculationSheet!F39 -> 
C17: =CalculationSheet!A7 -> SHIF Aetna GSHP | G17: =CalculationSheet!B46 ->  | I17: =CalculationSheet!E46 ->  | K17: =CalculationSheet!F46 ->  | M17: =CalculationSheet!G39 -> 
C18: =CalculationSheet!A8 -> Medical Benefits Waived | G18: =CalculationSheet!B47 ->  | I18: =CalculationSheet!E47 ->  | K18: =CalculationSheet!F47 -> 
B20: Step 5 | C20: Select Rx Contract Type | I20: Your Contribution Percentage | M20: =CalculationSheet!D49 -> 
B22: Pick Plan | C22: Prescription Plans Offered | I22: Annual Contribution | K22: Payperiod Contribution
C23: =CalculationSheet!A12 -> Aetna Dental Premier | G23: =CalculationSheet!B50 ->  | I23: =CalculationSheet!C50 ->  | K23: =CalculationSheet!F50 -> 
C24: =CalculationSheet!A13 -> Aetna Dental Preferred | G24: =CalculationSheet!B51 ->  | I24: =CalculationSheet!C51 ->  | K24: =CalculationSheet!F51 -> 
C25: =CalculationSheet!A14 -> Aetna Dental DMO | G25: =CalculationSheet!B52 ->  | I25: =CalculationSheet!C52 ->  | K25: =CalculationSheet!F52 -> 
B27: Step 5 | C27: Select Dental Contract Type | G27: Three + People | I27: Your Contribution Percentage | M27: =CalculationSheet!D55 -> 0.04
B29: Pick Plan | C29: Dental Plans Offered | G29: Monthly Premium | I29: Annual Contribution | K29: Payperiod Contribution
C30: =CalculationSheet!A20 -> Aetna Dental Premier | G30: =CalculationSheet!B56 -> 131.45 | I30: =CalculationSheet!C56 -> 63.096 | K30: =CalculationSheet!F56 -> 
C31: =CalculationSheet!A21 -> Aetna Dental Preferred | G31: =CalculationSheet!B57 -> 110.85 | I31: =CalculationSheet!C57 -> 53.208 | K31: =CalculationSheet!F57 -> 
C32: =CalculationSheet!A22 -> Aetna Dental DMO | G32: =CalculationSheet!B58 -> 48.98 | I32: =CalculationSheet!C58 -> 23.5104 | K32: =CalculationSheet!F58 -> 
C33: =CalculationSheet!A23 -> Waive Dental | G33: =CalculationSheet!B59 -> 0 | I33: =CalculationSheet!C59 -> 0 | K33: =CalculationSheet!F59 -> 
B35: NJEHP and GSHP prescription coverage is automatically included with the medical plan.
B36: The above amounts are estimates. Human Resources will verify the final amount to be deducted.

Sheet CalculationSheet (hidden)
A1: Plans Offered and Coverage Types | D1: Medical Plan Rates | K1: Chapter 78
A2: SHIF Aetna Managed Choice POS $5 (High Plan) | B2: Single | E2: Family | F2: Member/Spouse | G2: Parent/Child(ren) | H2: Single | L2: Salary | M2: Single | N2: Parent/Child(ren) | O2: Member/Spouse | P2: Family
A3: SHIF Aetna Managed Choice POS $25(Low Plan) | B3: Parent/Child(ren) | D3: =A2 -> SHIF Aetna Managed Choice POS $5 (High Plan) | E3: 3513.57 | F3: 3017.28 | G3: 2005.84 | H3: 1358.42 | K3: 0.01 | L3: Less than $20,000 | M3: 0.045 | N3: 0.035 | O3: 0.035 | P3: 0.03
A4: SHIF Aetna OAEC Savings Plus | B4: Member/Spouse | D4: =A3 -> SHIF Aetna Managed Choice POS $25(Low Plan) | E4: 3074.57 | F4: 2639.28 | G4: 1754.84 | H4: 1189.42 | K4: 20000 | L4: $20,000 - $24,999.99 | M4: 0.055 | N4: 0.035 | O4: 0.035 | P4: 0.03
A5: SHIF Aetna OAMC HSA | B5: Family | D5: SHIF Aetna OAEC Savings Plus | E5: 3014.57 | F5: 2587.28 | G5: 1720.84 | H5: 1165.42 | K5: 24999.99 | L5: $25,000 - $29,999.99 | M5: 0.075 | N5: 0.045 | O5: 0.045 | P5: 0.04
A6: SHIF Aetna NJEHP | D6: SHIF Aetna OAMC HSA | E6: 2555 | F6: 1891 | G6: 1451 | H6: 848 | K6: 29999.99 | L6: $30,000 - $34,999.99 | M6: 0.1 | N6: 0.06 | O6: 0.06 | P6: 0.05
A7: SHIF Aetna GSHP | B7: One Person | D7: SHIF Aetna NJEHP | E7: 3543.5 | F7: 3042.58 | G7: 2022.59 | H7: 1370.28 | K7: 34999.99 | L7: $35,000 - $39,999.99 | M7: 0.11 | N7: 0.07 | O7: 0.07 | P7: 0.06
A8: Medical Benefits Waived | B8: Two People | D8: SHIF Aetna GSHP | E8: 3184.5 | F8: 2733.58 | G8: 1817.59 | H8: 1231.28 | K8: 39999.99 | L8: $40,000 - $44,999.99 | M8: 0.12 | N8: 0.08 | O8: 0.08 | P8: 0.07
A9: Not Used | B9: Three + People | D9: Medical Benefits Waived | E9: 0 | F9: 0 | G9: 0 | H9: 0 | K9: 44999.99 | L9: $45,000 - $49,999.99 | M9: 0.14 | N9: 0.1 | O9: 0.1 | P9: 0.09
D10: Not Used | K10: 49999.99 | L10: $50,000 - $54,999.99 | M10: 0.2 | N10: 0.15 | O10: 0.15 | P10: 0.12
D11: Rx Plan Rates | K11: 54999.99 | L11: $55,000 - $59.999.99 | M11: 0.23 | N11: 0.17 | O11: 0.17 | P11: 0.14
A12: Aetna Dental Premier | B12: Number of Months | E12: One Person | F12: Two People | G12: Three + People | K12: 59999.99 | L12: $60,000 - $64,999.99 | M12: 0.27 | N12: 0.21 | O12: 0.21 | P12: 0.17
A13: Aetna Dental Preferred | B13: 10 | D13: =A12 -> Aetna Dental Premier | E13: 54.01 | F13: 75.83 | G13: 131.45 | H13: 281.92 | K13: 64999.99 | L13: $65,000 - $69,999.99 | M13: 0.29 | N13: 0.23 | O13: 0.23 | P13: 0.19
A14: Aetna Dental DMO | B14: 12 | D14: =A13 -> Aetna Dental Preferred | E14: 43.27 | F14: 62.2 | G14: 110.85 | H14: 0 | K14: 69999.99 | L14: $70,000 - $74,999.99 | M14: 0.32 | N14: 0.26 | O14: 0.26 | P14: 0.22
D15: =A14 -> Aetna Dental DMO | E15: 15.25 | F15: 29.19 | G15: 48.98 | H15: 0 | K15: 74999.99 | L15: $75,000 - $79,999.99 | M15: 0.33 | N15: 0.27 | O15: 0.27 | P15: 0.23
B16: 7/1/2020 Hire Date | K16: 79999.99 | L16: $80,000 - $84,999.99 | M16: 0.34 | N16: 0.28 | O16: 0.28 | P16: 0.24
B17: Yes | K17: 84999.99 | L17: $85,000 - $89,999.99 | M17: 0.34 | N17: 0.3 | O17: 0.3 | P17: 0.26
B18: No | D18: Dental Plan Rates | K18: 89999.99 | L18: $90,000 - $94,999.99 | M18: 0.34 | N18: 0.3 | O18: 0.3 | P18: 0.28
E19: One Person | F19: Three + People | G19: Two People | K19: 94999.99 | L19: $95,000 - $99,999.99 | M19: 0.35 | N19: 0.3 | O19: 0.3 | P19: 0.29
A20: Aetna Dental Premier | D20: =A20 -> Aetna Dental Premier | E20: 54.01 | F20: 131.45 | G20: 75.83 | K20: 99999.99 | L20: $100,000 - $109,999.99 | M20: 0.35 | N20: 0.35 | O20: 0.35 | P20: 0.32
A21: Aetna Dental Preferred | B21: Single | D21: =A21 -> Aetna Dental Preferred | E21: 43.27 | F21: 110.85 | G21: 62.2 | K21: 109999.99 | L21: $110,000 and over | M21: 0.35 | N21: 0.35 | O21: 0.35 | P21: 0.35
A22: Aetna Dental DMO | B22: Family | D22: =A22 -> Aetna Dental DMO | E22: 15.25 | F22: 48.98 | G22: 29.19 | K22: 1000000
A23: Waive Dental | D23: =A23 -> Waive Dental | E23: 0 | F23: 0 | G23: 0
A24: Aetna Vision (for POS Enrolled Only) | K24: Chapter 78 Dental (less than 4 tiers)
A25: Vision Plan 3 | D25: Vision Plan Rates | L25: Salary | M25: One Party | N25: Two Party | O25: Three or More Party
A26: Vision Plan 4 | D26: Family | E26: Family | F26: Member/Spouse | G26: Parent/Child(ren) | H26: Single | K26: 0.01 | L26: Less than $20,000 | M26: 0.045 | N26: 0.035 | O26: 0.03
D27: =A24 -> Aetna Vision (for POS Enrolled Only) | E27: 28.46 | F27: 14.09 | G27: 19.1 | H27: 7.04 | K27: 20000 | L27: $20,000 - $24,999.99 | M27: 0.055 | N27: 0.035 | O27: 0.03
D28: =A24 -> Aetna Vision (for POS Enrolled Only) | E28: 1700 | F28: 1200 | G28: 700 | H28: 200 | K28: 24999.99 | L28: $25,000 - $29,999.99 | M28: 0.075 | N28: 0.045 | O28: 0.04
K29: 29999.99 | L29: $30,000 - $34,999.99 | M29: 0.1 | N29: 0.06 | O29: 0.05
K30: 34999.99 | L30: $35,000 - $39,999.99 | M30: 0.11 | N30: 0.07 | O30: 0.06
K31: 39999.99 | L31: $40,000 - $44,999.99 | M31: 0.12 | N31: 0.08 | O31: 0.07 | S31: =A22 -> Aetna Dental DMO
K32: 44999.99 | L32: $45,000 - $49,999.99 | M32: 0.14 | N32: 0.1 | O32: 0.09 | S32: =A23 -> Waive Dental
K33: 49999.99 | L33: $50,000 - $54,999.99 | M33: 0.2 | N33: 0.15 | O33: 0.12
K34: 54999.99 | L34: $55,000 - $59.999.99 | M34: 0.23 | N34: 0.17 | O34: 0.14
A35: Benefit Surcharge Indicator | B35: =IF(B39>125000,1,0) -> 0 | D35: Hire Date Indicator | E35: ='Contribution Calculator'!I7:I7 -> Yes | K35: 59999.99 | L35: $60,000 - $64,999.99 | M35: 0.27 | N35: 0.21 | O35: 0.17
K36: 64999.99 | L36: $65,000 - $69,999.99 | M36: 0.29 | N36: 0.23 | O36: 0.19
A37: Medical Contributions | K37: 69999.99 | L37: $70,000 - $74,999.99 | M37: 0.32 | N37: 0.26 | O37: 0.22
B38: Salary | C38: Contract Type | D38: Chapter 78 | E38: Months | F38: Chapter 44 | G38: GHSP | K38: 74999.99 | L38: $75,000 - $79,999.99 | M38: 0.33 | N38: 0.27 | O38: 0.23 | S38: =A25 -> Vision Plan 3 | T38: 1800 | U38: 1300 | V38: 800 | W38: 300
A39: Medical Percentage | B39: ='Contribution Calculator'!F5 -> 25000 | C39: ='Contribution Calculator'!G9 -> 0 | D39: =IF(C39="Single",VLOOKUP(B39,K3:P21,3),IF(C39="Parent/Child(ren)",VLOOKUP(B39,K3:P21,4),IF(C39="Member/Spouse",VLOOKUP(B39,K3:P21,5),IF(C39="Family",VLOOKUP(B39,K3:P21,6)," ")))) ->  | E39: ='Contribution Calculator'!M5 -> 0 | F39: =IF(C39="Single",VLOOKUP(B39,K49:P56,3),IF(C39="Parent/Child(ren)",VLOOKUP(B39,K49:P56,4),IF(C39="Member/Spouse",VLOOKUP(B39,K49:P56,5),IF(C39="Family",VLOOKUP(B39,K49:P56,6)," ")))) ->  | G39: =IF(C39="Single",VLOOKUP(B39,K62:P69,3),IF(C39="Parent/Child(ren)",VLOOKUP(B39,K62:P69,4),IF(C39="Member/Spouse",VLOOKUP(B39,K62:P69,5),IF(C39="Family",VLOOKUP(B39,K62:P69,6)," ")))) ->  | K39: 79999.99 | L39: $80,000 - $84,999.99 | M39: 0.34 | N39: 0.28 | O39: 0.24 | S39: =A26 -> Vision Plan 4 | T39: 1900 | U39: 1400 | V39: 900 | W39: 400
A40: Plan Name | B40: Monthly Premium | C40: Annual Contribution | E40: Annual Contribution | F40: Per Payperiod | G40: 10 Month | H40: 12 Month | K40: 84999.99 | L40: $85,000 - $89,999.99 | M40: 0.34 | N40: 0.3 | O40: 0.26
A41: =A2 -> SHIF Aetna Managed Choice POS $5 (High Plan) | B41: =IFERROR(IF($E$35="Yes","Not Available",IF($E$35="No",HLOOKUP($C$39,$E$2:$H$8,2)," "))," ") -> Not Available | C41: =IFERROR(SUM(B41*12)*$D$39," ") ->  | E41: =C41 ->  | F41: =IF($E$39=10,G41,IF($E$39=12,H41," ")) ->  | G41: =IFERROR(E41/20," ") ->  | H41: =IFERROR(E41/24," ") ->  | K41: 89999.99 | L41: $90,000 - $94,999.99 | M41: 0.34 | N41: 0.3 | O41: 0.28
A42: SHIF Aetna Managed Choice POS $25(Low Plan) | B42: =IFERROR(IF($E$35="Yes","Not Available",IF($E$35="No",HLOOKUP($C$39,$E$2:$H$8,3)," "))," ") -> Not Available | C42: =IFERROR(SUM(B42*12)*$D$39," ") ->  | E42: =C42 ->  | K42: 94999.99 | L42: $95,000 - $99,999.99 | M42: 0.35 | N42: 0.3 | O42: 0.29
A43: SHIF Aetna OAEC Savings Plus | B43: =IFERROR(IF($E$35="Yes","Not Available",IF($E$35="No",HLOOKUP($C$39,$E$2:$H$8,4)," "))," ") -> Not Available | C43: =IFERROR(SUM(B43*12)*$D$39," ") ->  | E43: =C43 ->  | K43: 99999.99 | L43: $100,000 - $109,999.99 | M43: 0.35 | N43: 0.35 | O43: 0.32
A44: SHIF Aetna OAMC HSA | B44: =IFERROR(IF($E$35="Yes","Not Available",IF($E$35="No",HLOOKUP($C$39,$E$2:$H$8,4)," "))," ") -> Not Available | C44: =IFERROR(SUM(B44*12)*$D$39," ") ->  | E44: =C44 ->  | K44: 109999.99 | L44: $110,000 and over | M44: 0.35 | N44: 0.35 | O44: 0.35
A45: SHIF Aetna NJEHP | B45: =IFERROR(HLOOKUP($C$39,$E$2:$H$8,6)," ") ->  | C45: =IFERROR(IF(B45=" "," ",SUM(B39*F39))," ") ->  | E45: =IF(B35=1,125000*F39,C45) ->  | K45: 1000000
A46: SHIF Aetna GSHP | B46: =IFERROR(HLOOKUP($C$39,$E$2:$H$8,7)," ") ->  | C46: =IFERROR(IF(B46=" "," ",SUM(B39*G39))," ") ->  | E46: =IF(B35=1,125000*G39,C46) ->  | F46: =IF($E$39=10,G46,IF($E$39=12,H46," ")) ->  | G46: =IFERROR(E46/20," ") ->  | H46: =IFERROR(E46/24," ") ->  | K46: Chapter 44 - NJEHP
A47: Medical Benefits Waived | B47: =IFERROR(HLOOKUP($C$39,$E$2:$H$9,8)," ") ->  | C47: =IFERROR(SUM(B47*12)*$D$39," ") ->  | E47: =C47 ->  | F47: =IF($E$39=10,G47,IF($E$39=12,H47," ")) ->  | L47: Salary | M47: Single | N47: Parent/Child(ren) | O47: Member/Spouse | P47: Family
A48: Rx Contributions | M48: 0.017 | N48: 0.022 | O48: 0.028 | P48: 0.033
A49: Rx Percentage | C49: ='Contribution Calculator'!G20 -> 0 | D49: =IF(C49="Single",VLOOKUP(B39,K3:P21,3),IF(C49="Parent/Child(ren)",VLOOKUP(B39,K3:P21,4),IF(C49="Member/Spouse",VLOOKUP(B39,K3:P21,5),IF(C49="Family",VLOOKUP(B39,K3:P21,6)," ")))) ->  | E49: ='Contribution Calculator'!M5 -> 0 | K49: 0.01 | L49: Up to 40,000 | M49: 0.017 | N49: 0.022 | O49: 0.028 | P49: 0.033
A50: =A12 -> Aetna Dental Premier | B50: =IFERROR(HLOOKUP($C$49,$E$12:$H$15,2)," ") ->  | C50: =IFERROR(SUM(B50*12)*$D$49," ") ->  | E50: =C50 ->  | F50: =IF($E$49=10,G50,IF($E$49=12,H50," ")) ->  | G50: =IFERROR(E50/20," ") ->  | H50: =IFERROR(E50/24," ") ->  | K50: 40000.99 | L50: 40001-50000 | M50: 0.019 | N50: 0.025 | O50: 0.033 | P50: 0.039
A51: =A13 -> Aetna Dental Preferred | B51: =IFERROR(HLOOKUP($C$49,$E$12:$H$15,3)," ") ->  | C51: =IFERROR(SUM(B51*12)*$D$49," ") ->  | F51: =IF($E$39=10,G51,IF($E$39=12,H51," ")) ->  | G51: =IFERROR(E51/20," ") ->  | H51: =IFERROR(E51/24," ") ->  | K51: 50000.99 | L51: 50001-60000 | M51: 0.022 | N51: 0.028 | O51: 0.039 | P51: 0.044
A52: =A14 -> Aetna Dental DMO | B52: =IFERROR(HLOOKUP($C$49,$E$12:$H$15,4)," ") ->  | C52: =IFERROR(SUM(B52*12)*$D$49," ") ->  | F52: =IF($E$39=10,G52,IF($E$39=12,H52," ")) ->  | G52: =IFERROR(E52/20," ") ->  | H52: =IFERROR(E52/24," ") ->  | K52: 60000.99 | L52: 60001-70000 | M52: 0.025 | N52: 0.03 | O52: 0.044 | P52: 0.05
K53: 70000.99 | L53: 70001-80000 | M53: 0.028 | N53: 0.033 | O53: 0.05 | P53: 0.055
A54: Dental Contributions | K54: 80000.99 | L54: 80001-90000 | M54: 0.03 | N54: 0.036 | O54: 0.055 | P54: 0.06
A55: Dental Percentage | B55: =B39 -> 25000 | C55: ='Contribution Calculator'!G27 -> Three + People | D55: =IF(C55="One Person",VLOOKUP(B39,K26:O44,3),IF(C55="Two People",VLOOKUP(B39,K26:O44,4),IF(C55="Three + People",VLOOKUP(B39,K26:O44,5)," "))) -> 0.04 | E55: ='Contribution Calculator'!M5 -> 0 | K55: 90000.99 | L55: 90001-100000 | M55: 0.033 | N55: 0.039 | O55: 0.06 | P55: 0.066
A56: =A20 -> Aetna Dental Premier | B56: =IFERROR(HLOOKUP($C$55,$E$19:$G$23,2)," ") -> 131.45 | C56: =IFERROR(SUM(B56*12)*$D$55," ") -> 63.096 | E56: =C56 -> 63.096 | F56: =IF($E$55=10,G56,IF($E$55=12,H56," ")) ->  | G56: =IFERROR(E56/20," ") -> 3.1548 | H56: =IFERROR(E56/24," ") -> 2.629 | K56: 100000.99 | L56: 100001-125000 | M56: 0.036 | N56: 0.044 | O56: 0.066 | P56: 0.072
A57: =A21 -> Aetna Dental Preferred | B57: =IFERROR(HLOOKUP($C$55,$E$19:$G$23,3)," ") -> 110.85 | C57: =IFERROR(SUM(B57*12)*$D$55," ") -> 53.208 | E57: =C57 -> 53.208 | F57: =IF($E$39=10,G57,IF($E$39=12,H57," ")) ->  | G57: =IFERROR(E57/20," ") -> 2.6604 | H57: 2.217 | K57: 100000001
A58: =A22 -> Aetna Dental DMO | B58: =IFERROR(HLOOKUP($C$55,$E$19:$G$23,4)," ") -> 48.98 | C58: =IFERROR(SUM(B58*12)*$D$55," ") -> 23.5104 | E58: =C58 -> 23.5104 | F58: =IF($E$39=10,G58,IF($E$39=12,H58," ")) ->  | G58: =IFERROR(E58/20," ") -> 1.17552 | H58: 0.9796
A59: =A23 -> Waive Dental | B59: =IFERROR(HLOOKUP($C$55,$E$19:$G$23,5)," ") -> 0 | C59: =IFERROR(SUM(B59*12)*$D$55," ") -> 0 | E59: =C59 -> 0 | F59: =IF($E$39=10,G59,IF($E$39=12,H59," ")) ->  | G59: =IFERROR(E59/20," ") -> 0 | H59: 0 | K59: Chapter 44 - GSHP
L60: Salary | M60: Single | N60: Parent/Child(ren) | O60: Member/Spouse | P60: Family
A61: Vision Contributions | M61: 0.015 | N61: 0.015 | O61: 0.015 | P61: 0.0165
A62: Vision Percentage | B62: =B39 -> 25000 | C62: ='Contribution Calculator'!G27 -> Three + People | D62: =IF(C62="Single",VLOOKUP(B39,K3:P21,3),IF(C62="Parent/Child(ren)",VLOOKUP(B39,K3:P21,4),IF(C62="Member/Spouse",VLOOKUP(B39,K3:P21,5),IF(C62="Family",VLOOKUP(B39,K3:P21,6)," ")))) ->  | E62: =E39 -> 0 | K62: 0.01 | L62: Up to 40,000 | M62: 0.015 | N62: 0.015 | O62: 0.015 | P62: 0.0165
A63: =A23 -> Waive Dental | B63: =IFERROR(HLOOKUP($C$62,$S$35:$V$39,2)," ") ->  | C63: =IFERROR(SUM(B63*12)*$D$62," ") ->  | D63: =IF($E$39=10,E63,IF($E$39=12,F63," ")) ->  | E63: =C63 ->  | F63: =IF($E$55=10,G63,IF($E$55=12,H63," ")) ->  | G63: =IFERROR(E63/20," ") ->  | H63: =IFERROR(E63/24," ") ->  | K63: 40000.99 | L63: 40001-50000 | M63: 0.015 | N63: 0.015 | O63: 0.0165 | P63: 0.0195
A64: =A24 -> Aetna Vision (for POS Enrolled Only) | B64: =IFERROR(HLOOKUP($C$62,$S$35:$V$39,3)," ") ->  | C64: =IFERROR(SUM(B64*12)*$D$62," ") ->  | D64: =IF($E$39=10,E64,IF($E$39=12,F64," ")) ->  | E64: =C64 ->  | F64: =IF($E$39=10,G64,IF($E$39=12,H64," ")) ->  | G64: =IFERROR(E64/20," ") ->  | H64: =IFERROR(E64/24," ") ->  | K64: 50000.99 | L64: 50001-60000 | M64: 0.015 | N64: 0.015 | O64: 0.0195 | P64: 0.022
A65: =A25 -> Vision Plan 3 | B65: =IFERROR(HLOOKUP($C$62,$S$35:$V$39,4)," ") ->  | C65: =IFERROR(SUM(B65*12)*$D$62," ") ->  | D65: =IF($E$39=10,E65,IF($E$39=12,F65," ")) ->  | E65: =C65 ->  | F65: =IF($E$39=10,G65,IF($E$39=12,H65," ")) ->  | G65: =IFERROR(E65/20," ") ->  | K65: 60000.99 | L65: 60001-70000 | M65: 0.015 | N65: 0.015 | O65: 0.022 | P65: 0.025
A66: =A26 -> Vision Plan 4 | B66: =IFERROR(HLOOKUP($C$62,$S$35:$V$39,5)," ") ->  | C66: =IFERROR(SUM(B66*12)*$D$62," ") ->  | D66: =IF($E$39=10,E66,IF($E$39=12,F66," ")) ->  | E66: =C66 ->  | F66: =IF($E$39=10,G66,IF($E$39=12,H66," ")) ->  | G66: =IFERROR(E66/20," ") ->  | K66: 70000.99 | L66: 70001-80000 | M66: 0.015 | N66: 0.0165 | O66: 0.025 | P66: 0.0275
K67: 80000.99 | L67: 80001-90000 | M67: 0.015 | N67: 0.018 | O67: 0.0275 | P67: 0.03
A68: Per Paycheck Total | C68: =IFERROR(SUM(C69+C77+C82),0) -> 0 | K68: 90000.99 | L68: 90001-100000 | M68: 0.0165 | N68: 0.0195 | O68: 0.03 | P68: 0.033
A69: Medical Plan Selection Indicator | B69: 0 | C69: =IFERROR(VLOOKUP(B69,B70:C76,2),0) -> 0 | K69: 100000.99 | L69: 100001-125000 | M69: 0.0165 | N69: 0.022 | O69: 0.033 | P69: 0.036
A70: =A2 -> SHIF Aetna Managed Choice POS $5 (High Plan) | B70: 1 | C70: =IF('Contribution Calculator'!K12=" ",0,'Contribution Calculator'!K12) -> 0 | K70: 100000001
A71: SHIF Aetna Managed Choice POS $25(Low Plan) | B71: 2 | C71: =IF('Contribution Calculator'!K13=" ",0,'Contribution Calculator'!K13) -> 0
A72: SHIF Aetna OAEC Savings Plus | B72: 3 | C72: =IF('Contribution Calculator'!K14=" ",0,'Contribution Calculator'!K14) -> 0
A73: SHIF Aetna OAMC HSA | B73: 4 | C73: =IF('Contribution Calculator'!K15=" ",0,'Contribution Calculator'!K15) -> 0
A74: SHIF Aetna NJEHP | B74: 5 | C74: =IF('Contribution Calculator'!K16=" ",0,'Contribution Calculator'!K16) -> 0
A75: SHIF Aetna GSHP | B75: 6 | C75: =IF('Contribution Calculator'!K17=" ",0,'Contribution Calculator'!K17) -> 0
A76: Medical Benefits Waived | B76: 7 | C76: =IF('Contribution Calculator'!K18=" ",0,'Contribution Calculator'!K18) -> 0
A77: Rx Plan Selection Indicator | B77: 1 | C77: =IFERROR(VLOOKUP(B77,B78:C80,2),0) -> 0
A78: =A12 -> Aetna Dental Premier | B78: 1 | C78: =IF('Contribution Calculator'!K23=" ",0,'Contribution Calculator'!K23) -> 0
A79: =A13 -> Aetna Dental Preferred | B79: 2 | C79: =IF('Contribution Calculator'!K24=" ",0,'Contribution Calculator'!K24) -> 0
A80: =A14 -> Aetna Dental DMO | B80: 3 | C80: =IF('Contribution Calculator'!K25=" ",0,'Contribution Calculator'!K25) -> 0
B81: 1
A82: Dental Plan Selection Indicator | B82: 1 | C82: =IFERROR(VLOOKUP(B82,B83:C86,2),0) -> 0
A83: =A20 -> Aetna Dental Premier | B83: 1 | C83: =IF('Contribution Calculator'!K30=" ",0,'Contribution Calculator'!K30) -> 0
A84: =A21 -> Aetna Dental Preferred | B84: 2 | C84: =IF('Contribution Calculator'!K31=" ",0,'Contribution Calculator'!K31) -> 0
A85: =A22 -> Aetna Dental DMO | B85: 3 | C85: =IF('Contribution Calculator'!K32=" ",0,'Contribution Calculator'!K32) -> 0
A86: =A23 -> Waive Dental | B86: 4 | C86: =IF('Contribution Calculator'!K33=" ",0,'Contribution Calculator'!K33) -> 0
A89: Vision | B89: 2 | C89: =IFERROR(VLOOKUP(B89,B90:C93,2),0) -> 0
A90: =#REF! ->  | B90: 1 | C90: ='Contribution Calculator'!K30 -> 
A91: =A34 -> 0 | B91: 2 | C91: ='Contribution Calculator'!#REF! -> 
A92: =A35 -> Benefit Surcharge Indicator | B92: 3 | C92: ='Contribution Calculator'!#REF! -> 
A93: =A36 -> 0 | B93: 4 | C93: ='Contribution Calculator'!#REF! -> 
